[Event "Open Nuevo Centro. Jornada 1"]
[Site "Chess.com"]
[Date "2020.06.19"]
[Round "6"]
[White "Lupu, Alexandru Mihai"]
[Black "Rabbani Perez, Oumaima "]
[Result "1-0"]
[WhiteElo "992"]
[BlackElo "702"]
[TimeControl "180+2"]
[EndTime "11:39:33 PDT"]
[Termination "Victoria de KeenYoyo por jaque mate"]

1. d4 {[%clk 0:03:01.9]} 1... d5 {[%clk 0:02:58.2]} 2. Bf4 {[%clk 0:03:01.4]}
2... Bf5 {[%clk 0:02:57]} 3. e3 {[%clk 0:03:00.7]} 3... e6 {[%clk 0:02:57.1]} 4.
c3 {[%clk 0:03:00.1]} 4... c6 {[%clk 0:02:57.1]} 5. Bd3 {[%clk 0:02:59.5]} 5...
Bd6 {[%clk 0:02:55.7]} 6. Bxf5 {[%clk 0:02:58.5]} 6... Bxf4 {[%clk 0:02:53.9]}
7. exf4 {[%clk 0:02:46.1]} 7... exf5 {[%clk 0:02:53.9]} 8. Nf3 {[%clk
0:02:37.9]} 8... Qe7+ {[%clk 0:02:51.2]} 9. Qe2 {[%clk 0:02:34.8]} 9... Qxe2+
{[%clk 0:02:51.3]} 10. Kxe2 {[%clk 0:02:35.4]} 10... Nf6 {[%clk 0:02:49.8]} 11.
Re1 {[%clk 0:02:34]} 11... O-O {[%clk 0:02:49.8]} 12. Kf1 {[%clk 0:02:34.3]}
12... Nbd7 {[%clk 0:02:48.4]} 13. Na3 {[%clk 0:02:32.2]} 13... Ng4 {[%clk
0:02:48.8]} 14. h3 {[%clk 0:02:29.1]} 14... Nh2+ {[%clk 0:02:48.1]} 15. Nxh2
{[%clk 0:02:27]} 15... Nf6 {[%clk 0:02:41.5]} 16. c4 {[%clk 0:02:26.6]} 16... b5
{[%clk 0:02:37.4]} 17. cxb5 {[%clk 0:02:23.9]} 17... cxb5 {[%clk 0:02:36.1]} 18.
Nxb5 {[%clk 0:02:22.3]} 18... Rab8 {[%clk 0:02:36.4]} 19. Nxa7 {[%clk
0:02:18.5]} 19... Rxb2 {[%clk 0:02:32]} 20. a4 {[%clk 0:02:12.6]} 20... Ne4
{[%clk 0:02:31]} 21. Re2 {[%clk 0:01:56.2]} 21... Rxe2 {[%clk 0:02:27.8]} 22.
Kxe2 {[%clk 0:01:56.2]} 22... Nc3+ {[%clk 0:02:25.1]} 23. Kf1 {[%clk 0:01:54.4]}
23... Re8 {[%clk 0:02:21.3]} 24. Nf3 {[%clk 0:01:54.1]} 24... Ne4 {[%clk
0:02:17.7]} 25. a5 {[%clk 0:01:52.6]} 25... Ra8 {[%clk 0:02:17.2]} 26. Nc6
{[%clk 0:01:52.4]} 26... Ra6 {[%clk 0:02:13.3]} 27. Ne7+ {[%clk 0:01:47.3]}
27... Kf8 {[%clk 0:02:13.1]} 28. Nxf5 {[%clk 0:01:43.8]} 28... Nc3 {[%clk
0:02:08]} 29. Kg1 {[%clk 0:01:33.3]} 29... Nb5 {[%clk 0:02:07.2]} 30. Ne3 {[%clk
0:01:32.9]} 30... Rd6 {[%clk 0:02:03]} 31. a6 {[%clk 0:01:28.5]} 31... Nc7
{[%clk 0:02:01]} 32. a7 {[%clk 0:01:28.1]} 32... Rd8 {[%clk 0:02:00.1]} 33. Nxd5
{[%clk 0:01:20.2]} 33... Nxd5 {[%clk 0:01:57.5]} 34. a8=Q {[%clk 0:01:19.4]}
34... Rxa8 {[%clk 0:01:53.4]} 35. Rxa8+ {[%clk 0:01:19.3]} 35... Ke7 {[%clk
0:01:53.8]} 36. Ra7+ {[%clk 0:01:19.6]} 36... Kd6 {[%clk 0:01:52.3]} 37. Rxf7
{[%clk 0:01:18.3]} 37... Nxf4 {[%clk 0:01:49.3]} 38. Rxf4 {[%clk 0:01:17.4]}
38... Kd5 {[%clk 0:01:48.3]} 39. Rf5+ {[%clk 0:01:13.5]} 39... Ke4 {[%clk
0:01:44.5]} 40. Re5+ {[%clk 0:01:13.1]} 40... Kd3 {[%clk 0:01:42.9]} 41. Re3+
{[%clk 0:01:12.2]} 41... Kc2 {[%clk 0:01:40.4]} 42. d5 {[%clk 0:01:11.8]} 42...
g5 {[%clk 0:01:21.6]} 43. Nxg5 {[%clk 0:01:07.9]} 43... h5 {[%clk 0:01:20.4]}
44. d6 {[%clk 0:01:05.6]} 44... Kd2 {[%clk 0:01:14.9]} 45. d7 {[%clk 0:01:04.8]}
45... Kc2 {[%clk 0:00:55]} 46. d8=Q {[%clk 0:01:04.5]} 46... Kb2 {[%clk
0:00:55.4]} 47. Qd2+ {[%clk 0:01:04.9]} 47... Kb1 {[%clk 0:00:55.4]} 48. Re1#
{[%clk 0:01:05.6]} 1

[Event "Open Nuevo Centro. Jornada 1"]
[Site "Chess.com"]
[Date "2020.06.19"]
[Round "6"]
[White "Fern�ndez Martin, Carlos"]
[Black "Martinez Villena, David"]
[Result "0-1"]
[WhiteElo "1451"]
[BlackElo "1711"]
[TimeControl "180+2"]
[EndTime "11:39:42 PDT"]
[Termination "Victoria de DavidMVAlaquas por jaque mate"]

1. e4 {[%clk 0:03:01.9]} 1... c5 {[%clk 0:02:59.6]} 2. Nc3 {[%clk 0:02:59.3]}
2... Nc6 {[%clk 0:02:58.8]} 3. g3 {[%clk 0:02:55.8]} 3... g6 {[%clk 0:02:57.4]}
4. Bg2 {[%clk 0:02:52.8]} 4... Bg7 {[%clk 0:02:58.5]} 5. Nf3 {[%clk 0:02:51.2]}
5... e6 {[%clk 0:02:58.7]} 6. O-O {[%clk 0:02:50.9]} 6... Nge7 {[%clk
0:02:59.2]} 7. d3 {[%clk 0:02:51.5]} 7... O-O {[%clk 0:02:58.9]} 8. Be3 {[%clk
0:02:43.6]} 8... b6 {[%clk 0:02:57.4]} 9. Qd2 {[%clk 0:02:44.5]} 9... d5 {[%clk
0:02:47.6]} 10. exd5 {[%clk 0:02:43.6]} 10... exd5 {[%clk 0:02:48.2]} 11. Bh6
{[%clk 0:02:42.1]} 11... Bxh6 {[%clk 0:02:35.8]} 12. Qxh6 {[%clk 0:02:41.5]}
12... Nf5 {[%clk 0:02:37.4]} 13. Qf4 {[%clk 0:02:37.1]} 13... Bb7 {[%clk
0:02:27.1]} 14. g4 {[%clk 0:02:33.8]} 14... Nfd4 {[%clk 0:02:25.3]} 15. Qh6
{[%clk 0:02:29.7]} 15... Nxf3+ {[%clk 0:02:10.2]} 16. Bxf3 {[%clk 0:02:28.8]}
16... Nd4 {[%clk 0:02:11.3]} 17. Bd1 {[%clk 0:02:19.1]} 17... Qd7 {[%clk
0:02:02.1]} 18. h3 {[%clk 0:02:15.4]} 18... Rae8 {[%clk 0:01:58]} 19. f4 {[%clk
0:02:00.7]} 19... b5 {[%clk 0:01:45]} 20. f5 {[%clk 0:01:54.7]} 20... Kh8 {[%clk
0:01:22.7]} 21. f6 {[%clk 0:01:54.8]} 21... Rg8 {[%clk 0:01:19.5]} 22. a4 {[%clk
0:01:06.3]} 22... b4 {[%clk 0:01:19.9]} 23. Nb5 {[%clk 0:01:05.4]} 23... Nxb5
{[%clk 0:01:01.1]} 24. axb5 {[%clk 0:01:05.6]} 24... Qxb5 {[%clk 0:00:57.7]} 25.
Rxa7 {[%clk 0:01:05.5]} 25... Qb6 {[%clk 0:00:55.3]} 26. Ra1 {[%clk 0:01:01.6]}
26... d4 {[%clk 0:00:55.9]} 27. Bf3 {[%clk 0:00:52.9]} 27... Re3 {[%clk
0:00:53.2]} 28. Kg2 {[%clk 0:00:42.3]} 28... Bxf3+ {[%clk 0:00:38.8]} 29. Rxf3
{[%clk 0:00:42.3]} 29... Re2+ {[%clk 0:00:39.9]} 30. Kh1 {[%clk 0:00:26]} 30...
Qc6 {[%clk 0:00:37.3]} 31. Rf1 {[%clk 0:00:20.5]} 31... Rxc2 {[%clk 0:00:37.8]}
32. Kg1 {[%clk 0:00:17.3]} 32... Qd6 {[%clk 0:00:32.2]} 33. Re1 {[%clk
0:00:13.8]} 33... Qh2+ {[%clk 0:00:31.4]} 34. Kf1 {[%clk 0:00:15]} 34... Qg2#
{[%clk 0:00:31.6]} 0

[Event "Open Nuevo Centro. Jornada 1"]
[Site "Chess.com"]
[Date "2020.06.19"]
[Round "6"]
[White "Movsisyan, Tigran"]
[Black "Rodriguez Rodriguez, Joan David "]
[Result "1-0"]
[WhiteElo "1885"]
[BlackElo "1627"]
[TimeControl "180+2"]
[EndTime "11:39:46 PDT"]
[Termination "Victoria de USHADIRvzgo por abandono"]

1. d4 {[%clk 0:03:01.9]} 1... d5 {[%clk 0:03:00.5]} 2. c4 {[%clk 0:02:58]} 2...
e6 {[%clk 0:02:58.6]} 3. Nc3 {[%clk 0:02:59.3]} 3... c6 {[%clk 0:02:59.6]} 4.
Nf3 {[%clk 0:02:59.3]} 4... Nf6 {[%clk 0:03:00.5]} 5. Bg5 {[%clk 0:03:00.4]}
5... h6 {[%clk 0:03:01.9]} 6. Bxf6 {[%clk 0:02:58.9]} 6... Qxf6 {[%clk
0:03:03.8]} 7. e3 {[%clk 0:03:00.4]} 7... Bd6 {[%clk 0:03:04]} 8. Bd3 {[%clk
0:03:01.2]} 8... O-O {[%clk 0:03:04.7]} 9. O-O {[%clk 0:03:02.6]} 9... Nd7
{[%clk 0:02:55]} 10. Rb1 {[%clk 0:02:56.7]} 10... Qe7 {[%clk 0:02:54.3]} 11. a3
{[%clk 0:02:57.1]} 11... a5 {[%clk 0:02:52.2]} 12. c5 {[%clk 0:02:49.7]} 12...
Bc7 {[%clk 0:02:52.3]} 13. b4 {[%clk 0:02:51.6]} 13... axb4 {[%clk 0:02:44.8]}
14. axb4 {[%clk 0:02:53.5]} 14... e5 {[%clk 0:02:41.5]} 15. dxe5 {[%clk
0:02:52.2]} 15... Nxe5 {[%clk 0:02:41.8]} 16. Nxe5 {[%clk 0:02:50.7]} 16... Bxe5
{[%clk 0:02:43.7]} 17. Ne2 {[%clk 0:02:52]} 17... Bg4 {[%clk 0:02:40.6]} 18. h3
{[%clk 0:02:46.2]} 18... Bh5 {[%clk 0:02:36.8]} 19. Qc2 {[%clk 0:02:40.2]} 19...
Ra7 {[%clk 0:02:11.3]} 20. Nf4 {[%clk 0:02:34.1]} 20... Qg5 {[%clk 0:01:52]} 21.
Nxh5 {[%clk 0:02:21.8]} 21... Qxh5 {[%clk 0:01:53.9]} 22. b5 {[%clk 0:02:19.3]}
22... Rfa8 {[%clk 0:01:52.4]} 23. bxc6 {[%clk 0:02:14.9]} 23... bxc6 {[%clk
0:01:54.3]} 24. Rb6 {[%clk 0:01:35.4]} 24... Ra1 {[%clk 0:01:47.8]} 25. Rxc6
{[%clk 0:01:25.4]} 25... Rxf1+ {[%clk 0:01:42]} 26. Bxf1 {[%clk 0:01:25.1]}
26... Rb8 {[%clk 0:01:30.3]} 27. f4 {[%clk 0:01:16.5]} 27... Bf6 {[%clk
0:01:22.1]} 28. Bd3 {[%clk 0:01:11.5]} 28... Qh4 {[%clk 0:01:06.9]} 29. Qf2
{[%clk 0:00:51.5]} 29... Qh5 {[%clk 0:01:03.2]} 30. Kh2 {[%clk 0:00:39]} 30...
Qd1 {[%clk 0:01:01.3]} 31. Qe2 {[%clk 0:00:31.5]} 31... Qb3 {[%clk 0:00:22.3]}
32. Qc2 {[%clk 0:00:26.8]} 32... Qxc2 {[%clk 0:00:16.3]} 33. Bxc2 {[%clk
0:00:27.8]} 33... g6 {[%clk 0:00:16.6]} 34. Rxf6 {[%clk 0:00:25.8]} 1

[Event "Open Nuevo Centro. Jornada 1"]
[Site "Chess.com"]
[Date "2020.06.19"]
[Round "6"]
[White "Hern�ndez Tom�s, Efr�n"]
[Black "Mart�nez Cuenca, Jose Andr�s"]
[Result "1-0"]
[WhiteElo "981"]
[BlackElo "1056"]
[TimeControl "180+2"]
[EndTime "11:40:07 PDT"]
[Termination "Victoria de EfrenHT10 por tiempo"]

1. e4 {[%clk 0:03:01.9]} 1... c5 {[%clk 0:02:59.9]} 2. Nf3 {[%clk 0:03:02.8]}
2... g6 {[%clk 0:02:59.8]} 3. Bc4 {[%clk 0:03:01.1]} 3... Bg7 {[%clk 0:02:59.4]}
4. Ng5 {[%clk 0:03:01.2]} 4... e6 {[%clk 0:03:00.2]} 5. d3 {[%clk 0:02:59.8]}
5... Nc6 {[%clk 0:02:54.5]} 6. O-O {[%clk 0:02:58.2]} 6... Nf6 {[%clk
0:02:50.9]} 7. Nc3 {[%clk 0:02:55.7]} 7... O-O {[%clk 0:02:47.5]} 8. Bf4 {[%clk
0:02:53.2]} 8... d6 {[%clk 0:02:38.7]} 9. Nb5 {[%clk 0:02:50.6]} 9... e5 {[%clk
0:02:29.6]} 10. Bxf7+ {[%clk 0:02:34.4]} 10... Rxf7 {[%clk 0:02:25]} 11. Nxf7
{[%clk 0:02:34.1]} 11... Kxf7 {[%clk 0:02:25.4]} 12. Bg5 {[%clk 0:02:30.9]}
12... h6 {[%clk 0:02:20.6]} 13. Bxf6 {[%clk 0:02:29.3]} 13... Bxf6 {[%clk
0:02:20.6]} 14. Qf3 {[%clk 0:02:16.8]} 14... Kg8 {[%clk 0:02:11.3]} 15. Nc7
{[%clk 0:02:11.5]} 15... Qxc7 {[%clk 0:02:03.2]} 16. Qxf6 {[%clk 0:02:10.9]}
16... Qf7 {[%clk 0:01:52]} 17. Qxf7+ {[%clk 0:02:10.1]} 17... Kxf7 {[%clk
0:01:51.5]} 18. Rad1 {[%clk 0:02:07]} 18... Nd4 {[%clk 0:01:51.6]} 19. c3 {[%clk
0:02:02.3]} 19... Nc6 {[%clk 0:01:48.4]} 20. b4 {[%clk 0:02:00.1]} 20... cxb4
{[%clk 0:01:46.8]} 21. cxb4 {[%clk 0:01:58]} 21... Nxb4 {[%clk 0:01:46.7]} 22.
a3 {[%clk 0:01:57.1]} 22... Nc6 {[%clk 0:01:45.4]} 23. Rd2 {[%clk 0:01:55.1]}
23... Be6 {[%clk 0:01:40.6]} 24. Rb2 {[%clk 0:01:48.6]} 24... b6 {[%clk
0:01:37.3]} 25. Rc1 {[%clk 0:01:47]} 25... Nd4 {[%clk 0:01:36.3]} 26. Rc7+
{[%clk 0:01:45.1]} 26... Ke8 {[%clk 0:01:31.8]} 27. Rh7 {[%clk 0:01:41.7]} 27...
h5 {[%clk 0:01:26.5]} 28. Rh8+ {[%clk 0:01:41.7]} 28... Kd7 {[%clk 0:01:17.2]}
29. Rxa8 {[%clk 0:01:40.5]} 29... a5 {[%clk 0:01:10.8]} 30. Rxb6 {[%clk
0:01:34.7]} 30... Ne2+ {[%clk 0:01:07.7]} 31. Kf1 {[%clk 0:01:33.5]} 31... Nf4
{[%clk 0:01:05.6]} 32. Ra7+ {[%clk 0:01:32.8]} 32... Kc8 {[%clk 0:01:02.4]} 33.
Rxd6 {[%clk 0:01:32]} 33... Bg8 {[%clk 0:00:51.3]} 34. Ra8+ {[%clk 0:01:29.8]}
34... Kc7 {[%clk 0:00:50.3]} 35. Rdd8 {[%clk 0:01:17.7]} 35... Bb3 {[%clk
0:00:37.6]} 36. g3 {[%clk 0:01:14.9]} 36... Ne6 {[%clk 0:00:35.4]} 37. Re8
{[%clk 0:01:14]} 37... Ng7 {[%clk 0:00:29.5]} 38. Re7+ {[%clk 0:01:13.8]} 38...
Kb6 {[%clk 0:00:21.2]} 39. Rxg7 {[%clk 0:01:13.6]} 39... Bc2 {[%clk 0:00:21.7]}
40. Rxg6+ {[%clk 0:01:12.2]} 40... Kb7 {[%clk 0:00:12.4]} 41. Re8 {[%clk
0:01:08.8]} 41... Bxd3+ {[%clk 0:00:10.9]} 42. Ke1 {[%clk 0:01:06]} 42... Bb5
{[%clk 0:00:07.8]} 43. Re7+ {[%clk 0:01:05]} 1

[Event "Open Nuevo Centro. Jornada 1"]
[Site "Chess.com"]
[Date "2020.06.19"]
[Round "6"]
[White "Vorozbits Moisejevs, Daniels"]
[Black "Juan Alos, Sergio"]
[Result "1-0"]
[WhiteElo "934"]
[BlackElo "1038"]
[TimeControl "180+2"]
[EndTime "11:40:13 PDT"]
[Termination "Victoria de UgnadaKnukes por tiempo"]

1. e4 {[%clk 0:03:00.7]} 1... c6 {[%clk 0:02:09.4]} 2. Nc3 {[%clk 0:02:58.5]}
2... d5 {[%clk 0:02:11.3]} 3. exd5 {[%clk 0:02:58.3]} 3... cxd5 {[%clk
0:02:13.2]} 4. Bb5+ {[%clk 0:02:58.9]} 4... Nc6 {[%clk 0:02:09.9]} 5. Bxc6+
{[%clk 0:02:58.1]} 5... bxc6 {[%clk 0:02:11.8]} 6. Nf3 {[%clk 0:02:59.1]} 6...
Nf6 {[%clk 0:01:39.8]} 7. O-O {[%clk 0:02:51.3]} 7... Bg4 {[%clk 0:01:39.3]} 8.
d3 {[%clk 0:02:50.6]} 8... e6 {[%clk 0:01:38.7]} 9. Be3 {[%clk 0:02:48]} 9...
Bd6 {[%clk 0:01:36.3]} 10. h3 {[%clk 0:02:44.3]} 10... Bh5 {[%clk 0:01:03.2]}
11. Qe2 {[%clk 0:02:37.2]} 11... O-O {[%clk 0:01:04.2]} 12. Rfe1 {[%clk
0:02:37.8]} 12... c5 {[%clk 0:01:01.8]} 13. Nb5 {[%clk 0:02:34.8]} 13... d4
{[%clk 0:00:58.9]} 14. Bd2 {[%clk 0:02:32.6]} 14... Bb8 {[%clk 0:00:55.2]} 15.
Na3 {[%clk 0:02:26.2]} 15... a6 {[%clk 0:00:54.1]} 16. Nc4 {[%clk 0:02:26.4]}
16... Nd7 {[%clk 0:00:48]} 17. Qe4 {[%clk 0:02:18.5]} 17... Bxf3 {[%clk
0:00:44.9]} 18. Qxf3 {[%clk 0:02:16.8]} 18... Nb6 {[%clk 0:00:38.8]} 19. Nxb6
{[%clk 0:02:15.6]} 19... Qxb6 {[%clk 0:00:40.7]} 20. Qxa8 {[%clk 0:02:15.9]}
20... Bh2+ {[%clk 0:00:41.2]} 21. Kxh2 {[%clk 0:02:16.4]} 21... Rxa8 {[%clk
0:00:42.4]} 22. Rab1 {[%clk 0:02:16.6]} 22... Qc6 {[%clk 0:00:40.4]} 23. Bf4
{[%clk 0:02:14.8]} 23... a5 {[%clk 0:00:39]} 24. a3 {[%clk 0:02:14.1]} 24... c4
{[%clk 0:00:38.3]} 25. Rbc1 {[%clk 0:02:09.9]} 25... c3 {[%clk 0:00:36.1]} 26.
bxc3 {[%clk 0:02:06.7]} 26... Qxc3 {[%clk 0:00:33.6]} 27. a4 {[%clk 0:01:55.9]}
27... Qb4 {[%clk 0:00:28.4]} 28. Ra1 {[%clk 0:01:54.2]} 28... Rc8 {[%clk
0:00:27.5]} 29. Reb1 {[%clk 0:01:48.5]} 29... Qe7 {[%clk 0:00:19.8]} 30. Rb2
{[%clk 0:01:47.7]} 30... g6 {[%clk 0:00:20.7]} 31. Rab1 {[%clk 0:01:47.9]} 31...
Kg7 {[%clk 0:00:18.4]} 32. Be5+ {[%clk 0:01:48.2]} 32... f6 {[%clk 0:00:18.6]}
33. Bxd4 {[%clk 0:01:47.7]} 33... Kh6 {[%clk 0:00:18.6]} 34. Be3+ {[%clk
0:01:48.2]} 34... g5 {[%clk 0:00:19.1]} 35. Rb7 {[%clk 0:01:48.6]} 35... Qd6+
{[%clk 0:00:17.6]} 36. Kg1 {[%clk 0:01:46.4]} 36... Rxc2 {[%clk 0:00:17.7]} 37.
R7b6 {[%clk 0:01:43.8]} 37... Rc6 {[%clk 0:00:18.5]} 38. R6b5 {[%clk 0:01:34.9]}
38... Rc2 {[%clk 0:00:14.6]} 39. Rb6 {[%clk 0:01:33.5]} 39... Qa3 {[%clk
0:00:14.1]} 40. Rxe6 {[%clk 0:01:24.1]} 40... Qxa4 {[%clk 0:00:13.7]} 41. Rxf6+
{[%clk 0:01:24.2]} 41... Kh5 {[%clk 0:00:15]} 42. g4+ {[%clk 0:01:18.1]} 42...
Kh4 {[%clk 0:00:12.8]} 43. Kg2 {[%clk 0:01:11.2]} 43... h5 {[%clk 0:00:10.6]}
44. Rh6 {[%clk 0:01:06.5]} 1

[Event "Open Nuevo Centro. Jornada 1"]
[Site "Chess.com"]
[Date "2020.06.19"]
[Round "6"]
[White "Saiz Sapena, Veronica"]
[Black "Ursariu, Nikolas Victor"]
[Result "1-0"]
[WhiteElo "1570"]
[BlackElo "1321"]
[TimeControl "180+2"]
[EndTime "11:40:43 PDT"]
[Termination "Victoria de Titina1 por jaque mate"]

1. e4 {[%clk 0:03:01.9]} 1... e5 {[%clk 0:03:01]} 2. d4 {[%clk 0:03:00.8]} 2...
exd4 {[%clk 0:03:01.1]} 3. Nf3 {[%clk 0:03:00.5]} 3... Nc6 {[%clk 0:03:01.9]} 4.
Bc4 {[%clk 0:02:50.8]} 4... Nf6 {[%clk 0:03:00.2]} 5. Ng5 {[%clk 0:02:50.5]}
5... Rg8 {[%clk 0:02:52.8]} 6. Bxf7+ {[%clk 0:02:49.7]} 6... Ke7 {[%clk
0:02:52.1]} 7. Bxg8 {[%clk 0:02:50.4]} 7... h6 {[%clk 0:02:50.6]} 8. O-O {[%clk
0:02:43.3]} 8... hxg5 {[%clk 0:02:48.1]} 9. Bxg5 {[%clk 0:02:43.4]} 9... d6
{[%clk 0:02:45.2]} 10. Bd5 {[%clk 0:02:41.9]} 10... Ke8 {[%clk 0:02:42.6]} 11.
Bxf6 {[%clk 0:02:36.9]} 11... Qxf6 {[%clk 0:02:39.9]} 12. Bxc6+ {[%clk
0:02:31.4]} 12... Bd7 {[%clk 0:02:28.7]} 13. Bxd7+ {[%clk 0:02:16.2]} 13... Kxd7
{[%clk 0:02:28.3]} 14. Qg4+ {[%clk 0:02:15.6]} 14... Kd8 {[%clk 0:02:24.2]} 15.
Nd2 {[%clk 0:02:15.1]} 15... Be7 {[%clk 0:02:15.9]} 16. Rab1 {[%clk 0:02:09.7]}
16... Qe5 {[%clk 0:02:04.9]} 17. f4 {[%clk 0:02:04.2]} 17... Qf6 {[%clk
0:02:03.9]} 18. Qf3 {[%clk 0:01:58.8]} 18... Kd7 {[%clk 0:02:01.9]} 19. Nc4
{[%clk 0:01:50.6]} 19... Rd8 {[%clk 0:01:52.6]} 20. e5 {[%clk 0:01:51]} 20...
dxe5 {[%clk 0:01:49.3]} 21. Nxe5+ {[%clk 0:01:51.5]} 21... Kc8 {[%clk
0:01:48.4]} 22. Qg4+ {[%clk 0:01:46.5]} 22... Kb8 {[%clk 0:01:46]} 23. Nd7+
{[%clk 0:01:46.8]} 23... Rxd7 {[%clk 0:01:39.9]} 24. Qxd7 {[%clk 0:01:47.3]}
24... Qf8 {[%clk 0:01:27.1]} 25. g3 {[%clk 0:01:38.3]} 25... Bc5 {[%clk
0:01:24.2]} 26. Kh1 {[%clk 0:01:36.6]} 26... Qc8 {[%clk 0:01:13.1]} 27. Qxc8+
{[%clk 0:01:35.3]} 27... Kxc8 {[%clk 0:01:13.1]} 28. Rfe1 {[%clk 0:01:36.5]}
28... Kd7 {[%clk 0:01:11.7]} 29. Rbd1 {[%clk 0:01:35.8]} 29... c6 {[%clk
0:01:02.6]} 30. c3 {[%clk 0:01:36.1]} 30... Kc7 {[%clk 0:01:01.3]} 31. cxd4
{[%clk 0:01:36.7]} 31... Bd6 {[%clk 0:00:53.2]} 32. Re6 {[%clk 0:01:28.3]} 32...
Bb4 {[%clk 0:00:52]} 33. a3 {[%clk 0:01:27.3]} 33... Bd6 {[%clk 0:00:49.7]} 34.
Rxd6 {[%clk 0:01:27.3]} 34... Kxd6 {[%clk 0:00:49.6]} 35. Kg2 {[%clk 0:01:27.4]}
35... Kd5 {[%clk 0:00:50]} 36. Kf3 {[%clk 0:01:28.1]} 36... g6 {[%clk
0:00:49.6]} 37. Kg4 {[%clk 0:01:28.5]} 37... Ke6 {[%clk 0:00:49.1]} 38. Kg5
{[%clk 0:01:28.7]} 38... Kf7 {[%clk 0:00:50.2]} 39. b4 {[%clk 0:01:29.1]} 39...
Kg7 {[%clk 0:00:49.6]} 40. Re1 {[%clk 0:01:29.6]} 40... Kf7 {[%clk 0:00:47.1]}
41. h4 {[%clk 0:01:29.4]} 41... b6 {[%clk 0:00:44.2]} 42. h5 {[%clk 0:01:29.9]}
42... gxh5 {[%clk 0:00:42.8]} 43. Kxh5 {[%clk 0:01:30.6]} 43... Kf6 {[%clk
0:00:44]} 44. g4 {[%clk 0:01:31.3]} 44... a6 {[%clk 0:00:39.2]} 45. g5+ {[%clk
0:01:31.2]} 45... Kg7 {[%clk 0:00:38.3]} 46. f5 {[%clk 0:01:31.1]} 46... a5
{[%clk 0:00:28.8]} 47. bxa5 {[%clk 0:01:30.4]} 47... bxa5 {[%clk 0:00:30.7]} 48.
Re6 {[%clk 0:01:29.5]} 48... a4 {[%clk 0:00:28.9]} 49. Rxc6 {[%clk 0:01:29.2]}
49... Kf7 {[%clk 0:00:25.8]} 50. Kh6 {[%clk 0:01:28.9]} 50... Kg8 {[%clk
0:00:25.7]} 51. Kg6 {[%clk 0:01:25.6]} 51... Kf8 {[%clk 0:00:24.9]} 52. Rc7
{[%clk 0:01:25.2]} 52... Ke8 {[%clk 0:00:22.1]} 53. Kf6 {[%clk 0:01:24.1]} 53...
Kd8 {[%clk 0:00:21.5]} 54. Rh7 {[%clk 0:01:23.8]} 54... Ke8 {[%clk 0:00:20.2]}
55. g6 {[%clk 0:01:23.5]} 55... Kd8 {[%clk 0:00:19.4]} 56. g7 {[%clk 0:01:23.2]}
56... Ke8 {[%clk 0:00:04.5]} 57. g8=Q# {[%clk 0:01:22.1]} 1

[Event "Open Nuevo Centro. Jornada 1"]
[Site "Chess.com"]
[Date "2020.06.19"]
[Round "6"]
[White "Garcia Trobat, Francisco"]
[Black "Gutierrez Marco, Dario"]
[Result "1-0"]
[WhiteElo "2225"]
[BlackElo "1936"]
[TimeControl "180+2"]
[EndTime "11:40:46 PDT"]
[Termination "Victoria de NoSure por tiempo"]

1. e4 {[%clk 0:03:01.9]} 1... c5 {[%clk 0:03:00]} 2. Nf3 {[%clk 0:03:02.5]} 2...
e6 {[%clk 0:03:01.1]} 3. d3 {[%clk 0:03:02.6]} 3... Nc6 {[%clk 0:02:59.8]} 4. g3
{[%clk 0:03:02.8]} 4... d5 {[%clk 0:03:01]} 5. Nbd2 {[%clk 0:03:03.1]} 5... Bd6
{[%clk 0:03:00.7]} 6. Bg2 {[%clk 0:03:04.1]} 6... Nge7 {[%clk 0:03:00.6]} 7. O-O
{[%clk 0:03:04.9]} 7... O-O {[%clk 0:03:01.3]} 8. Re1 {[%clk 0:03:04.3]} 8... b6
{[%clk 0:03:01.7]} 9. e5 {[%clk 0:02:58]} 9... Bc7 {[%clk 0:02:56.3]} 10. c3
{[%clk 0:02:58.4]} 10... a5 {[%clk 0:02:55]} 11. d4 {[%clk 0:02:54.7]} 11... Ba6
{[%clk 0:02:51.1]} 12. Nf1 {[%clk 0:02:48.5]} 12... Nf5 {[%clk 0:02:42.5]} 13.
Ne3 {[%clk 0:02:43.8]} 13... Nxe3 {[%clk 0:02:41.3]} 14. Bxe3 {[%clk 0:02:42.1]}
14... cxd4 {[%clk 0:02:34]} 15. cxd4 {[%clk 0:02:26.5]} 15... Rc8 {[%clk
0:02:26.8]} 16. a3 {[%clk 0:02:24.5]} 16... Bb8 {[%clk 0:02:17.9]} 17. h4 {[%clk
0:02:19.5]} 17... b5 {[%clk 0:01:58.9]} 18. Bf1 {[%clk 0:02:15.7]} 18... Qb6
{[%clk 0:01:55.3]} 19. Bd3 {[%clk 0:02:10.1]} 19... b4 {[%clk 0:01:52.2]} 20.
Ng5 {[%clk 0:02:01.3]} 20... Bxd3 {[%clk 0:01:49]} 21. Qxd3 {[%clk 0:02:01.1]}
21... g6 {[%clk 0:01:50.2]} 22. h5 {[%clk 0:01:51]} 22... Ba7 {[%clk 0:01:25.5]}
23. hxg6 {[%clk 0:01:42.9]} 23... hxg6 {[%clk 0:01:21.8]} 24. Nxe6 {[%clk
0:01:37.3]} 24... Rfe8 {[%clk 0:00:35.8]} 25. Nf4 {[%clk 0:01:31.6]} 25... Kg7
{[%clk 0:00:31.2]} 26. Nxd5 {[%clk 0:01:29.8]} 26... Qd8 {[%clk 0:00:30.2]} 27.
Qe4 {[%clk 0:01:14.9]} 27... Ne7 {[%clk 0:00:17.7]} 28. Nf6 {[%clk 0:00:53.7]}
28... Rh8 {[%clk 0:00:15]} 29. Kg2 {[%clk 0:00:46.1]} 29... Nf5 {[%clk
0:00:14.5]} 30. Rh1 {[%clk 0:00:44.3]} 30... Qe7 {[%clk 0:00:06.5]} 31. Nd5
{[%clk 0:00:29.2]} 31... Qe6 {[%clk 0:00:06.8]} 32. Nf4 {[%clk 0:00:28]} 32...
Qd7 {[%clk 0:00:06.5]} 33. e6 {[%clk 0:00:26.9]} 33... fxe6 {[%clk 0:00:06.8]}
34. Nxe6+ {[%clk 0:00:27.3]} 34... Kf6 {[%clk 0:00:08]} 35. Bg5+ {[%clk
0:00:26.1]} 35... Kf7 {[%clk 0:00:09.4]} 36. d5 {[%clk 0:00:22.3]} 36... Nd6
{[%clk 0:00:06.6]} 37. Qf4+ {[%clk 0:00:21.8]} 37... Nf5 {[%clk 0:00:07.6]} 38.
Qe5 {[%clk 0:00:20.2]} 38... Bd4 {[%clk 0:00:05.7]} 39. Nxd4 {[%clk 0:00:19.6]}
39... Nxd4 {[%clk 0:00:05.6]} 40. Qf6+ {[%clk 0:00:20.4]} 40... Ke8 {[%clk
0:00:05.6]} 41. Qxh8+ {[%clk 0:00:21.9]} 41... Kf7 {[%clk 0:00:05.5]} 42. Qf6+
{[%clk 0:00:23.2]} 1